Workbook

Sheet Design-Culvert (hidden)
C1: Design of Culvert | K1: =AND(K2:K6) -> FALSE
C2: Operating H (m) : H | K2: =J2<>"" -> FALSE
C3: Length of the Culvert (m) : L | K3: =J3<>"" -> FALSE
C4: Type of Culvert | K4: FALSE
C5: Dia of Pipe Culvert (m) | F5: Width (m) X Depth (m) of Box Culvert | K5: =OR(AND(Culvert="Pipe",E5<>""),AND(Culvert="Box",I5<>"",J5<>"")) -> FALSE
C6: Culvert Entry Condition | K6: FALSE
A7: Design
A8: =Culvert="Pipe" -> FALSE | C8: Pipe Culvert
A9: =Culvert="Pipe" -> FALSE | C9: Internal Diameter of Pipe Culvert (m) : D | J9: =IF(Culvert="Pipe",E5,0) -> 0
A10: =Culvert="Pipe" -> FALSE | C10: Cross Sectional Area (sqm): | J10: =ROUND(PI()*(J9^2)/4,2) -> 0
A11: =Culvert="Pipe" -> FALSE | C11: Wetted Perimeter (m): | J11: =ROUND(PI()*J9,2) -> 0
A12: =Culvert="Pipe" -> FALSE | C12: Hydraulic Mean Radius (m): R = A/P = | J12: =IFERROR(ROUND(J10/J11,2),0) -> 0
A13: =Culvert="Box" -> FALSE | C13: Box Culvert
A14: FALSE | C14: Dimensions of the Box Culvert (m) | I14: Width (w) | J14: =IF(Culvert="Box",I5,0) -> 0
A15: FALSE | I15: Depth (d) | J15: =IF(Culvert="Box",J5,0) -> 0
A16: FALSE | C16: Cross Sectional Area (sqm) A = w x d = | J16: =ROUND(J14*J15,2) -> 0
A17: FALSE | C17: Wetted Perimeter (m): | J17: =2*(J14+J15) -> 0
A18: FALSE | C18: Hydraulic Mean Radius (m): R = A/P = | J18: =IFERROR(ROUND(J16/J17,2),0) -> 0
A19: =FALSE -> FALSE | C19: Cross Sectional Area | J19: =J10+J16 -> 0
A20: =FALSE -> FALSE | C20: Hydraulic Mean Radius | J20: =J12+J18 -> 0
A21: =TRUE -> TRUE | C21: Entry Coeffocient Ke
A22: =AND(Culvert="Pipe",Entry="Square") -> FALSE | C22: For Circular Pipe-Square Entry: | J22: =IF(AND($J$4="Pipe",$J$6="Square"),ROUND(1.107*SQRT($J$20),3),0) -> 0
A23: =AND(Culvert="Pipe",Entry="Bevelled") -> FALSE | C23: For Circular Pipe-Bevelled Entry : ke = 0.10 | J23: =IF(AND($J$4="Pipe",$J$6="Bevelled"),0.1,0) -> 0
A24: =AND(Culvert="Box",Entry="Square") -> FALSE | C24: For Box Culvert-Square Entry: | J24: =IF(AND($J$4="Box",$J$6="Square"),ROUND(0.527*($J$20^0.3),3),0) -> 0
A25: =AND(Culvert="Box",Entry="Bevelled") -> FALSE | C25: For Box Culvert-Bevelled Entry : ke = 0.05 | J25: =IF(AND($J$4="Box",$J$6="Bevelled"),0.05,0) -> 0
A26: =FALSE -> FALSE | C26: Entry Coefficient | J26: =SUM(J22:J25) -> 0
A27: =TRUE -> TRUE | C27: Friction Coeffocient Kf
A28: =Culvert="Pipe" -> FALSE | C28: For Circular Pipe : | J28: =IFERROR(IF(J4="Pipe",0.0039*J3/(J20)^1.2,0),0) -> 0
A29: =Culvert="Box" -> FALSE | C29: For Box Culvert : | J29: =IFERROR(IF(J6="Box",0.0035*J4/(#REF!)^1.25,0),0) -> 0
A30: =FALSE -> FALSE | C30: Friction Coefficient | J30: =J28+J29 -> 0
A31: =TRUE -> TRUE | C31: Velocity of the Flow in the Culvert (m/s) | J31: =IFERROR(ROUND(4.43*SQRT(J2/(1+J26+J30)),2),0) -> 0
A32: =TRUE -> TRUE | C32: Discharge through single barrel (cum/sec) : Q - A x V = | J32: =J19*J31 -> 0
A33: =TRUE -> TRUE | C33: Total Flood Discharge | J33: =Design_Discharge -> 0
A34: =TRUE -> TRUE | C34: No of Vents/Rows Required = | J34: =IFERROR(CEILING(J33/J32,1),0) -> 0
A35: =TRUE -> TRUE | J35: =IFERROR(ROUND(J34*J32/J33,2),0) -> 0
A36: =TRUE -> TRUE

Sheet Home
A1: Design of Small Bridges & Culverts [As per IRC-SP-13 (2022)] | K1: =AND(K2:K8) -> FALSE | L1: ="Overall Data Entry - "& IF(Valid,"Valid & Sufficient, and Design Discharge is Dedtermined & Design Document can be Printed","Invalid/Insufficient") -> Overall Data Entry - Invalid/Insufficient
A2: Project/Work | K2: =Project<>"" -> FALSE
A3: Program | D3: Package/Work_ID | I3: RD (km) | K3: =AND(Program<>"",Work_ID<>"",CD_ID<>"",RD<>"") -> FALSE
A4: Stream/Catchment Details | K4: =AND(K5:K6) -> FALSE | L4: ="Entry of Catchment Area and Boundary Conditions - " & IF(K4,"Complete/Valid","Incomplete/Invalid") -> Entry of Catchment Area and Boundary Conditions - Incomplete/Invalid
A5: Stream | B5: Boundary Conditions | F5: Width (m) | H5: Average Depth (m) | K5: =AND(Stream_Boundary<>"",OR(AND(Stream_Boundary="Undefined Channel",Stream_Width="",Stream_Depth=""),AND(Stream_Boundary<>"Undefined Channel",Stream_Width<>"",Stream_Depth<>""))) -> FALSE
A6: Catchment Area (Ha) | F6: Cross Sectional Area of the Stream (sqm) | J6: =ROUND(Stream_Width*Stream_Depth,2) -> 0 | K6: =Catchment_Area<>"" -> FALSE
A7: CD_Type | C7: Proposed Type of Small Bridge/Slab Culvert | K7: =AND(CD_ID<>"",OR(AND(CD_ID="Pipe/Box Culvert",Proposed_Bridge_Type=""),AND(CD_ID<>"Pipe/Box Culvert",Proposed_Bridge_Type<>""))) -> FALSE
A8: Design Discharge(By at least one method) | K8: =OR(Direct_Discharge<>"",Rational_Valid,AV_Valid,Existing_Valid) -> FALSE | L8: ="Design Discharge Specification is - " & IF(K8,"Complete/Valid","Incomplete/Invalid") -> Design Discharge Specification is - Incomplete/Invalid
D9: =Rational_Valid -> FALSE | F9: =AV_Valid -> FALSE | H9: =Existing_Valid -> FALSE
J10: =IF(Rational_Valid,1,0)+IF(AV_Valid,1,0)+IF(Existing_Valid,1,0) -> 0 | L10: ="Flood Discharge is determined by " & IF(J10=0," zero ",IF(J10=1," one ",IF(J10=2," two ", " three "))) & " methods" -> Flood Discharge is determined by zero methods
A11: Legend
B12: Data Input Cell
B13: On Mouse-Over the Cell, Explanatory Notes on the Cell Data is available
B14: Data Entry Completed/Valid in the adjoining Cell/Row/Procedure
B15: Data Entry Incompleted/Invalid in the adjoining Cell/Row/Procedure
A16: Culvert | B16: Cross Drainage structure having a total length of 6.0 M or less between the interface of dirt walls or extreme vent way boundaries.
A17: Small Bridge | B17: Cross Drainage structure having a total length from 6.0-30.0 M between the interface of dirt walls or extreme vent way boundaries.

Sheet Parameters-Rational Method (hidden)
A1: Determination of Peak Run-Off/Flood Discharge [Design of Small Bridges and Culverts as per IRC-SP-13 (2022)]
A2: Rational Method [Catchment Area & Rainfall (Enter F&T values OR I0 vlaue only)Particulars]
A3: M | B3: Ha | C3: Catchment Area | J3: =Catchment_Area -> 0
A4: D | B4: km | C4: Distance from farthest (critical) point on catchment area to structure
A5: H | B5: m | C5: Fall from farthest (critical) point on catchment area to structure
A6: Catchment Area Characteristics
A7: F | B7: cm | C7: Rain Fall of severst storm in return period
A8: T | B8: Hour | C8: Duration of severest rainfall in return period
A9: I0 | B9: cm/hour | C9: Calculated Value from F and T | J9: =IFERROR(ROUND((Rain_Fall/2)*(1+1/Duration),2),"") -> 
A10: I0 | B10: cm/hour | C10: One-Hour Rainfall Intensity of the Region (if F and T values not entered)
A11: I0 | B11: cm/hour | C11: Obtained from Above Two Options | J11: =IF(J9<>"",J9,IF(Direct_Rainfall_Intensity<>"",Direct_Rainfall_Intensity,"")) -> 
J12: =AND(Catchment_Area<>"",Critical_Distance<>"",Critical_Fall<>"",Catchment_Characterstics<>"",Rainfall_Intensity<>"") -> FALSE

Sheet Parameters-Area_Velocity Method (hidden)
A1: Determination of Peak Run-Off/Flood Discharge [Design of Small Bridges and Culverts as per IRC-SP-13 (2022)]
A2: Areav-Velocity/Conveyance Factor Method [Charactristics of Stream and Cross Section & Slope]
A3: Rugosity Condition of the Stream
A4: Rugosity Condition of the Stream Surface
A5: A | B5: sqm | C5: Cross Sectional Area of the Stream @ MFL
A6: P | B6: m | C6: Wetted Perimeter @ MFL
A7: S | B7: ="Slope of the Stream taken over not less than " & CS_Distance(Catchment_Area) & " meters on both U/S and D/S of the CD work Location" -> Slope of the Stream taken over not less than 100 meters on both U/S and D/S of the CD work Location
J8: =AND(Rugosity_Stream<>"",Rugosity_Surface<>"",Stream_Area_AV<>"",Wetted_Perimeter<>"",Stream_Slope<>"") -> FALSE

Sheet Parameters-Existing Structure (hidden)
A1: Determination of Peak Run-Off/Flood Discharge [Design of Small Bridges and Culverts as per IRC-SP-13 (2022)]
A2: Flood Marks on Existing Structure Method (if any within 500 m of selected site) | J2: =AND(Stream_Width_Bridge<>"",Linear_Waterway_Bridge<>"",Afflux_Bridge<>"",Depth_DS_Bridge<>"",Bridge_Type<>"") -> FALSE
A3: w | B3: m | C3: Un-Obstrcted width of the Stream at Bridge @ MFL
A4: L | B4: m | C4: Linear Waterway of the Bridge Structure
A5: h | B5: m | C5: Afflux (Upstream Depth - Downstream Depth: Du - Dd) @ MFL
A6: Dd | B6: m | C6: Depth (Average) of the Stream Downstream of the Bridge @ MFL
A7: Existing Bridge Type

Sheet Lacey Regime Section (hidden)
A1: Symbol | B1: Units | C1: Parameter | G1: Value
A2: Q | B2: cum/sec | C2: Design Discharge | G2: =Design_Discharge -> 0
A3: ksf | C3: Lacey' Silt Factor | G3: =Lacey_Silt_Factor -> 0
A4: Regime Section
A5: P | B5: m | C5: Wetted Perimeter | G5: =ROUND(4.8*G2^0.5,2) -> 0
A6: R | B6: m | C6: Hydraulic Mean Radius/Depth | G6: =IFERROR(ROUND(0.473*(G2/Lacey_Silt_Factor)^(1/3),2),0) -> 0
A7: S | C7: Longitudinal Slope | G7: =IFERROR(ROUND((0.0003*(Lacey_Silt_Factor)^(5/3))/G2^(1/6),2),0) -> 0
A8: V | B8: m/s | C8: Velocity | G8: =ROUND(0.44*(G2^(1/6))*Lacey_Silt_Factor^(1/3),2) -> 0
A9: A | B9: sqm | C9: Cross Sectional Area | G9: =IFERROR(ROUND(2.3*(G2^(5/6))/(Lacey_Silt_Factor^(1/3)),2),0) -> 0

Sheet Q-Flood Discharge (hidden)
A2: ="Name of the Project/Work: "&Project&" at km "&RD -> Name of the Project/Work: at km
A3: Determination of Flood Discharge/Peak-Runoff
A5: By Rational Method | G5: =Q_Rational -> 0
A6: By Conveyance-Factor (Area-Velocity) Method | G6: =Q_Area_Velocity -> 0
A7: By Flood Marks on Exsting Structure | G7: =Q_Floodmarks -> 0
A8: By Direct Entry | G8: =Direct_Discharge -> 0
A9: Flood Discharge [as per 6.2.1 of IRC-SP-13 (2022)] | G9: =IF(G8>0,G8,IF(SUM(G5:G7) = MAX(G5:G7), MAX(G5:G7),IF(MAX(G5:G7) > 1.5*LARGE(G5:G7,2),1.5*LARGE(G5:G7,2),MAX(G5:G7)))) -> 0
G10: cum/sec
A12: Note: Flood discharges can be estimated in three different ways - Rational Method, Conveyance Factor (Area-Velocity) Method, and from Flood marks on existing structure. The values obtained should be compared. The highest of these values should be adopted as the design discharge Q, provided it does not exceed the next highest discharge by more than 50%. If it does then restrict to that limit. That is 1.50 times the second highest value

Sheet Design (hidden)
C1: Design of Cross Drainage Structure
C2: ="Name of the Project/Work: " & Project & " at km " & RD -> Name of the Project/Work: at km
C3: Q (cum/sec) = Design Discharge = | L3: =Design_Discharge -> 0
C4: Stream Boundary (Bed and Banks) Condition (Rigid/Alluvial) | J4: =Stream_Boundary -> 0
A5: Silt Factor | C5: ksf = Lacey's Silt Factor for Alluvial and Quasi-Alluvial Streams | L5: =Lacey_Silt_Factor -> 0
A6: Header_LWW | C6: Determination of Linear Water Way (L) and Normal Scour Depth (dsm) [considering stream contraction if any]
A7: Rigid_Boundaries | C7: Stream with Rigid Boundaries (Consisting of non-erodible banks and bed)
A8: Rigid_Boundaries
A9: Rigid_Boundaries | C9: W (m) = Width between Rigid Boundaries | L9: =IF(Stream_Boundary="Rigid Boundaries", Stream_Width,0) -> 0
C10: L (m) = Linear Water Way (Default Value is Stream Width) | L10: =L9 -> 0
A11: Rigid_Boundaries | C11: dsm (m) = Average Normal Scour Depth = Cross Scetion Area/Width = A/W = | L11: =IFERROR(ROUND(Stream_Area/Stream_Width,2),0) -> 0
A12: Alluvial_Wide | C12: Wholly Alluvial Wide Stream (Consisting of erodible banks and bed with width very large compared to depth)
A13: Alluvial_Wide | C13: W (m) = Lacey's Regime Width = Lacey's Wetted Perimeter P = | L13: =IF(Stream_Boundary = "Alluvial (Wide)",ROUND(4.8*SQRT(Design_Discharge),2),0) -> 0
A14: Alluvial_Wide | C14: L (m) = Linear Water Way (Limited by the Lacey's Regime Width above) | L14: =L13 -> 0
A15: Alluvial_Wide | C15: Db (cum/sec per meter width) = Discharge/m = Q/L | L15: =IFERROR(ROUND(Design_Discharge/L14,2),0) -> 0
A16: Alluvial_Wide | C16: dsm (m) = Average Normal Scour Depth (considering stream contraction if any) =
A17: Alluvial_Wide | L17: =IFERROR(ROUND(1.34*(L15^2/Lacey_Silt_Factor)^0.333,2),0) -> 0
A18: Alluvial_Wide
A19: Quasi_Alluvial | C19: Quasi-Alluvial Stream (Consisting of non-erodible banks and erodible bed)
A20: Quasi_Alluvial | C20: W (m) = Width between Boundaries | L20: =IF(Stream_Boundary="Quasi-Alluvial", Stream_Width,0) -> 0
C21: L (m) = Linear Water Way (Default Value is Stream Width) | L21: =L20 -> 0
A22: Quasi_Alluvial | C22: Db (cum/sec per meter width) = Discharge/m = Q/L | L22: =IFERROR(ROUND(Design_Discharge/L21,2),0) -> 0
A23: Quasi_Alluvial | C23: dsm (m) = Average Normal Scour Depth (considering stream contraction if any) =
A24: Quasi_Alluvial | L24: =IFERROR(ROUND(1.34*(L22^2/Lacey_Silt_Factor)^0.333,2),0) -> 0
A25: Quasi_Alluvial
A26: Alluvial_Non_Wide | C26: Wholly Alluvial Non-Wide Stream (Consisting of erodible banks and bed where width is NOT large compared to depth)
A27: Alluvial_Non_Wide | C27: W (m) =Lacey's Regime Width for non-wide streams [Proportional to Lacey's Wetted Perimeter] | L27: =IFERROR(IF(Stream_Boundary = "Alluvial (Non-Wide)", MIN(Stream_Width,Stream_Width*4.8*SQRT(Design_Discharge)/(Stream_Width + 2*Stream_Depth)),0),0) -> 0
A28: Alluvial_Non_Wide | C28: L (m) = Linear Water Way as per site conditions | L28: =L27 -> 0
A29: Alluvial_Non_Wide | C29: Db (cum/sec per meter width) = Discharge/m = Q/L | L29: =IFERROR(ROUND(Design_Discharge/L28,2),0) -> 0
A30: Alluvial_Non_Wide | C30: dsm (m) = Average Normal Scour Depth (considering stream contraction if any) =
A31: Alluvial_Non_Wide | L31: =IFERROR(ROUND(1.34*(L29^2/Lacey_Silt_Factor)^0.333,2),0) -> 0
A32: Alluvial_Non_Wide
C33: W (m) = Un-Obstructed Width/Regime Width of Stream = | L33: =L9+L13+L20+L27 -> 0
A34: LWW_ScourDepth | C34: ∴ L (m) = Linear Water Way = | L34: =L10+L14+L21+L28 -> 0
A35: LWW_ScourDepth | C35: ∴ dsm (m) = Average Normal Scour Depth (considering stream contraction if any) = | L35: =L11+L17+L24+L31 -> 0
A37: Header_MaxScour | C37: Determination of Maximum Scour Depth [considering stream contraction if any]
A38: Alluvial_MaxScour | C38: Stream in Straight Reach/Bends | M38: Mandatory Field
A39: Alluvial_MaxScour | C39: Overtopping/Outflanking Condition at Banks OR Spans are Small | M39: Optional Field
A40: Alluvial_MaxScour | C40: Maximum depth of observed scour hole (beyond normal scour depth if any) in the bed (m) | M40: Optional Field
A41: Alluvial_MaxScour | C41: Maximum Scour Depth at Piers | L41: =ROUND(MAX(2*L35,L40),2) -> 0
A42: Alluvial_MaxScour | C42: Maximum Scour Depth at Abutments | L42: =ROUND(MAX(IF(OR(G38="Stream is located in 'Bends' with 'Cross Currents'",L39="Yes"),2*L35,1.27*L35),L40),2) -> 0
A43: Rigid_MaxScour | C43: Since the Stream has rigid bed the Maximum Scour Depth at piers & abutments is deemed the Depth of the Stream itself | L43: =L35 -> 0
A44: MaxScour | C44: ∴ Maximum Scour Depth at Piers | L44: =IF(Stream_Boundary="Rigid Boundaries",$L$43,L41) -> 0
A45: MaxScour | C45: ∴ Maximum Scour Depth at abutments | L45: =IF(Stream_Boundary="Rigid Boundaries",$L$43,L42) -> 0
A47: Strata | C47: Determination of Soil Strata for Open Foundations
A48: Strata | C48: Enter in any one of the following 3 cells | L48: =IF(L49="",0,1)+IF(L50="",0,1)+IF(L51="",0,1) -> 0
A49: Strata | C49: Depth at which Hard Rock with 10 MPa bearing capacity available within 2 m from Max. Scour Depth
A50: Strata | C50: Depth at which SDR etc available within 2 m from Max. Scour Depth
A51: Strata | C51: Depth at which required bearing capacity for foundations is available in ordinary soils from Max. scour depth
A52: Strata | C52: ="Depth of Foundations from Maximum Scour depth - "&IF(L49<>"","Anchor the foundations 0.60 m in hard rock",IF(L50<>"","Anchor the foundations in SDR/strong soils for 1.50 m"," in Ordinary Soils")) -> Depth of Foundations from Maximum Scour depth - in Ordinary Soils | L52: =IF(L49<>"",L49,IF(L50<>"",L50,MAX(2,L51))) -> 2
A54: Foundation_Spans | C54: Determination of Depth of Foundations (m)
A55: Foundation_Spans | C55: ="Required Vertical Clearance/Free Board (mm) for the given Design Discharge " & Design_Discharge & " =" -> Required Vertical Clearance/Free Board (mm) for the given Design Discharge 0 = | L55: =Vertical_Clearance(Design_Discharge) -> 150
C56: Afflux (In case of Bridge Contraction -> Linear Water Way < Unobstructed/Regime Width of Channel) in mm | L56: =IF(Linear_Waterway<Regime_Width,1000*MAX(Afflux,0),0) -> 0
A57: Foundation_Spans | C57: ∴ Total Depth of Foundations (m) at piers, including vertical clearance, from MFL | L57: =ROUND(Max_Scour_Depth_Pier+$L$52+($L$55+$L$56)/1000,2) -> 2.15
A58: Foundation_Spans | C58: ∴ Total Depth of Foundations (m) at Abutments, including vertical clearance, from MFL | L58: =ROUND(Max_Scour_Depth_Abutment+$L$52+$L$55/1000,2) -> 2.15
A59: Foundation_Spans | C59: Economical Span (M) = 1.50 x Total Depth of Foundations | L59: =CEILING(1.5*L58,0.25) -> 3.25
A60: Foundation_Spans | C60: Total Discharge Area = Linear Water Way x (Total Depth of Fondation - Max. Scour Depth - Vertical Clearance) = | L60: =Linear_Waterway*(MAX(Foundation_Depth_Pier,Foundation_Depth_Abutment) - MIN(Max_Scour_Depth_Pier,Max_Scour_Depth_Abutment) - (L55/1000)) -> 0
A61: Foundation_Spans
A62: Foundation_Spans | C62: Determination of Vents and Span of Slab Culverts/Small Bridges
A63: Foundation_Spans | C63: ="Hence Provide " & CD_ID & " of " -> Hence Provide of | H63: =CEILING(Linear_Waterway/Span,1) -> 0 | I63: Vents of | J63: =L59 -> 3.25 | K63: m Span | L63: =IFERROR(ROUND(H63*J63/Linear_Waterway,2),"") -> 
A65: Design_Summary | C65: Summary of Design Parameters
A66: Design_Summary | C66: Parameter | L66: Value
A67: Design_Summary | C67: Linear Waterway (m) | L67: =Linear_Waterway -> 0
A68: Design_Summary | C68: Normal Scour Depth (m) | L68: =Normal_Scour_Depth -> 0
A69: Design_Summary | C69: Maximum Scour Depth (m) at Piers | L69: =Max_Scour_Depth_Pier -> 0
A70: Design_Summary | C70: Maximum Scour Depth (m) at Abutments | L70: =Max_Scour_Depth_Abutment -> 0
A71: Design_Summary | C71: ="Foundation Depth at Piers "&IF($L$49<>"","(Anchor to a depth of 0.60 m in Hard Rock)",IF($L$50<>"","(Anchor to a depth of 1.50 m in SDR/Non-erodible strata)","(In Ordinary Soils)")) -> Foundation Depth at Piers (In Ordinary Soils) | L71: =Foundation_Depth_Pier -> 2.15
A72: Design_Summary | C72: ="Foundation Depth at Abutments "&IF($L$49<>"","(Anchor to a depth of 0.60 m in Hard Rock)",IF($L$50<>"","(Anchor to a depth of 1.50 m in SDR/Non-erodible strata)","(In Ordinary Soils)")) -> Foundation Depth at Abutments (In Ordinary Soils) | L72: =Foundation_Depth_Abutment -> 2.15
A73: Design_Summary | C73: ="No. of " & IF(OR(CD_ID = "Piped Causeway",CD_ID = "Pipe Culvert"), "Rows","Vents") -> No. of Vents | L73: =Vents -> 0
A74: Design_Summary | C74: =IF(OR(CD_ID = "Piped Causeway",CD_ID = "Pipe Culvert"), "Diameter","Span") & " in m" -> Span in m | L74: =Span -> 3.25
A75: Design_Summary

Sheet Lacey's Silt Factor (hidden)
C1: ="Name of the Project/Work: "&Project&" at km "&RD -> Name of the Project/Work: at km
C3: Determination of Lacey's Silt Factor ksf
C4: Enter Directly value of Lacey's Silt Factor if available | I4: OR
A6: Methods | C6: Nature of Bed Material
A8: Clayey | C8: Set Parameters for Clayey Soils
A9: Clayey | C9: Angle of Repose ϕ(o) | F9: Cohesiveness (kg/cm2) (c)
A10: Clayey | C10: ϕ Value | F10: F | G10: ∴ F = | H10: =IF(OR(E9="",H9=""),0,IF(E9<=5,2,IF(E9<=10,1.75,1.5))) -> 0
A11: Clayey | C11: Up to 5o | F11: 2
A12: Clayey | C12: Above 5o, but up to 10o | F12: 1.75
A13: Clayey | C13: Above 10o, but up to 15o | F13: 1.5
A14: Clayey
A15: Clayey | C15: ∴ Lacey's Silt Factor = | H15: =ROUND(H10*(1+SQRT(H9)),3) -> 0
A16: Non-Clayey | C16: Set method of Determination of silt factor for Non-Clayey Soils
A17: Non-Clayey
A20: Empirical | C20: Method : Empirically based on the type of bed material
A21: Empirical | C21: Select type of bed material | G21: dm | H21: ksf
A22: Empirical | G22: =IFERROR(VLOOKUP(Stream_Bed_Material,Lacey_Factors,4,FALSE),0) -> 0 | H22: =IFERROR(VLOOKUP(Stream_Bed_Material,Lacey_Factors,7,FALSE),0) -> 0
A23: Empirical
A24: Sieve Analysis | C24: Method : From the sieve analysis of the bed material [As per Appendix 2 of IRC-5/Plate 4 of IRC-SP-13 (2022)]
A25: Sieve Analysis | C25: IS Sieve | D25: Sieve Opening (mm) | E25: Average Size of Particle (mm) | F25: Weight of Soil Retained (gm) | G25: % Weight of Soil Retained | H25: Weighted Mean dia of Soil Particle(%)
A26: Sieve Analysis | C26: 5.6 mm | D26: 5.6 | E26: 0 | F26: 0 | G26: =IFERROR(ROUND(100*F26/$F$34,2),0) -> 0 | H26: =ROUND(E26*G26,3) -> 0
A27: Sieve Analysis | C27: 4 mm | D27: 4 | E27: =AVERAGE(D26,D27) -> 4.8 | G27: =IFERROR(ROUND(100*F27/$F$34,2),0) -> 0 | H27: 0
A28: Sieve Analysis | C28: 2.8 mm | D28: 2.8 | E28: =AVERAGE(D27,D28) -> 3.4 | G28: 0 | H28: 0
A29: Sieve Analysis | C29: 1 mm | D29: 1 | E29: 1.9 | G29: 0 | H29: 0
A30: Sieve Analysis | C30: 425 µ | D30: 0.425 | E30: 0.7125 | G30: 0 | H30: 0
A31: Sieve Analysis | C31: 180 µ | D31: 0.18 | E31: 0.3025 | G31: 0 | H31: 0
A32: Sieve Analysis | C32: 75 µ | D32: 0.075 | E32: 0.1275 | G32: 0 | H32: 0
A33: Sieve Analysis | C33: PAN | D33: 0 | E33: 0.0375 | G33: 0 | H33: 0
A34: Sieve Analysis | C34: Total Weight of Sample | F34: =SUM(F26:F33) -> 0 | G34: =SUM(G26:G33) -> 0 | H34: =SUM(H26:H33) -> 0
A35: Sieve Analysis | C35: Weighted Mean Diameter (mm) of the bed soil dm = | H35: =ROUND(H34/100,3) -> 0
A36: Sieve Analysis
A37: Sieve Analysis | C37: ∴ Lacey's Silt Factor = | H37: =ROUND(1.76*SQRT(H35),3) -> 0
A38: Mean Dia | C38: Method : Based on Mean Diameter of Bed Material
A39: Mean Dia | C39: Mean Dia of Bed Material dm (mm)
A40: Mean Dia | C40: ∴ Lacey's Silt Factor = | H40: =ROUND(1.76*(H39)^0.5,3) -> 0
H42: =ROUND(H4+H22+H37+H40+H15,3) -> 0

Sheet Q-Rational Method (hidden)
A1: ="Name of the Project/Work: " &Project&" at km "&RD -> Name of the Project/Work: at km
A2: Estimation of Flood Discharge from Catchment Area and Rainfall Characteristics by Rational Method
A3: Symbol | B3: Description | C3: Value | D3: Units
A4: M | B4: Catchment Area | C4: =Catchment_Area -> 0 | D4: Ha
A5: D | B5: Distance from farthest (critical) point on catchment area to structure | C5: =Critical_Distance -> 0 | D5: km
A6: H | B6: Fall from farthest (critical) point on catchment area to structure | C6: =Critical_Fall -> 0 | D6: m
A7: Catchment Characteristics | B7: =Catchment_Characterstics -> 0
A8: Determination of One-Hour Rainfall Intensity (I0) for the Region based on severest storm of Return Period
A9: F | B9: Rain Fall of severst storm in return period | C9: =Rain_Fall -> 0 | D9: cm
A10: T | B10: Duration of severest rainfall in return period | C10: =Duration -> 0 | D10: Hour
A11: I0 [Rainfall Intensity] | B11: One-Hour Rain Fall Intensity of the Region | C11: =IFERROR((C9/2)*(1+ 1/C10),"") ->  | D11: cm/hour
B12: OR Enter Value of I0 Directly | C12: =Direct_Rainfall_Intensity -> 0
B13: ∴ One-Hour Rainfall Intensity I0 = | C13: =IF(C11<>"",C11,IF(C12<>"",C12,"")) -> 0
A14: Calculations
A15: tc | B15: Concentration Time = | C15: =IFERROR(ROUND((0.87*(Critical_Distance^3)/Critical_Fall)^0.385,3),"") ->  | D15: Hour
A16: IC | B16: Critical Intensity of rainfall corresponding to concentration time | C16: =IFERROR(ROUND(One_Hour_Rainfall*(2/(1+Concentration_Time)),3),"") ->  | D16: cm/hour
A17: P | B17: Run_Off Coefficient for the given Catchment | C17: =IFERROR(VLOOKUP(B7,Run_Off_Coefficient,2,FALSE),"") -> 
A18: f | B18: Mean Intensity Factor = function of Area of Catchment | C18: =ROUND(Interpolated_Value(Catchment_Area,Area_Mean_Intensity,2),4) -> 1
A19: Q | B19: Peak Run-Off =
B20: =
B21: Let λ= | C21: =IFERROR(ROUND((0.056*Mean_Intensity_Factor*Coefficient_Runoff)/(1+Concentration_Time),3),"") -> 
B22: = | C22: =IFERROR(ROUND(Catchment_Area*One_Hour_Rainfall*Lambda,3),0) -> 0 | D22: cum/sec

Sheet Q-AV Method (hidden)
A1: ="Name of the Project/Work: " & Project&" at km "&RD -> Name of the Project/Work: at km
A2: Estimation of Maximum Flood Discharge from Stream Conveyance Factor and Slope
A3: Charactristics of Stream and Cross Section & Slope
A4: Symbol | B4: Units | C4: Description | K4: Value
A5: Rugosity Stream | C5: =Rugosity_Stream -> 0
A6: Stream Surface | K6: =Rugosity_Surface -> 0
A7: S | C7: Stream Slope | K7: =Stream_Slope -> 0
A8: n | C8: Coefficient of Rugosity (Manning's Formula) for given Stream type and surface as per table 5.1 of IRC SP-13 | K8: =IFERROR(INDEX(Rugosity_Coefficients,MATCH(C5,Rugosity_Streams,FALSE),MATCH(K6,Rugosity_Surfaces,FALSE)),"") -> 
A9: A | B9: m2 | C9: Cross Sectional Area of the Stream for MFL (Maximum Flood Level) | K9: =Stream_Area_AV -> 0
A10: P | B10: m | C10: Wetteted Perimeter of the Stream for MFL (Maximum Flood Level) | K10: =Wetted_Perimeter -> 0
A11: R | B11: m | C11: Hydraulic Mean Depth/Radius of the Stream = Cross Sectional Area (A)/Wetted Perimeter (P) = | K11: =IFERROR(ROUND(K9/K10,2),0) -> 0
A12: V | B12: m/s | C12: Velocity of the Stream as per Manning's formula = | K12: =IFERROR(ROUND((K11^(2/3))*(K7^0.5)/K8,2),0) -> 0
A13: Q | B13: cum/sec | C13: Maximum Flood Discharge = Cross Sectional Area (A) x Velocity (V) = | K13: =ROUND(K9*K12,2) -> 0

Sheet Q-Flood Marks (hidden)
A2: ="Name of the Project/Work: "&Project&" at km "&RD -> Name of the Project/Work: at km
A3: Determination of Flood Discharge based on Flood Marks on Existing Bridge Structure
A4: Discharge Upstream of Bridge
A6: Discharge through the Bridge - Weir Formula
A9: Discharge through the Bridge - Orifice Formula
A11: Where
B12: Q = Discharge in cum/sec & u = Approach Velocity in m/s
B13: W = Un-Obstructed Width of the Stream in m | G13: =Stream_Width_Bridge -> 0
B14: L = Linear Waterway of the Bridge | G14: =Linear_Waterway_Bridge -> 0
B15: Dd = Downstream Depth of stream in m | G15: =Depth_DS_Bridge -> 0
B16: h = Afflux of the stream in m | G16: =Afflux_Bridge -> 0
B17: h/Dd = | G17: =IFERROR(ROUND(G16/G15,3),0) -> 0
B18: Du = Upstream Depth of stream in m = Dd + h = | G18: =G15+G16 -> 0
B19: A = Cross Sectional Area of the Stream in sqm = WDu | G19: =ROUND(G13*G18,3) -> 0
B20: L/W = Ratio for determination of Orifice Formula coefficients | G20: =IFERROR(ROUND(G14/G13,3),0) -> 0
B21: Cw = Coefficient of Standing Wave | G21: =IFERROR(VLOOKUP(Bridge_Type,Weir_Coefficients,2,FALSE),0) -> 0
B22: C0 = f(L/W) = | G22: =IFERROR(ROUND(Interpolated_Value(Contraction_Bridge,Orifice_Coefficients,3),3),0) -> 0
B23: e = f(L/W) = | G23: =IFERROR(ROUND(Interpolated_Value(Contraction_Bridge,Orifice_Coefficients,2),3),0) -> 0
A24: Equating Upstream Discharge and Discharge through the Bridge and rearranging the same for approach velocity 'u' and solving by iteration
A27: Weir Formula | F27: ="=" -> = | G27: =IFERROR(ROUND(1.706*Weir_CW*Linear_Waterway_Bridge/Cross_Section_US,3),0) -> 0 | H27: ="x[" &Depth_US&" + square(u)/19.60]^3/2 =" -> x[0 + square(u)/19.60]^3/2 =
H28: =U_Weir -> 0 | I28: =G27*(Depth_US+(H28^2/19.6))^1.5 -> 0 | J28: m/sec
A31: Orifice Formula | F31: ="=" -> = | G31: =IFERROR(ROUND(G22*(2*9.8)^0.5*G14*G15/G19,3),0) -> 0 | H31: ="x["&Afflux_Bridge&"+(1+"&Orifice_e&")Square(u)/19.60]^0.50 =" -> x[+(1+0)Square(u)/19.60]^0.50 =
H32: =U_Orifice -> 0 | I32: =G31*(Afflux_Bridge+(1+Orifice_e)*(H32^2/19.6))^0.5 -> 0 | J32: m/sec
A34: ∴ Approach Velocity u= | I34: =ROUND(IF(Afflux_Ratio>0.25,MAX(U_Weir,U_Orifice),U_Orifice),2) -> 0 | J34: m/sec
A35: Note: If h/Dd >0.25, then Approach Velocity is given by maximum of that given by Weir & Orifice Formulas, Else it is given by Orifice Formula
A36: Q = Flood Discharge based on Flood Markings on existing structure = Au = | I36: =ROUND(Cross_Section_US*Approach_Velocity,2) -> 0 | J36: cum/sec

Sheet Afflux (hidden)
A1: ="Name of the Project/Work: "&Project&" at km "&RD -> Name of the Project/Work: at km
A2: Determination of Afflux through the Bridge
A3: Discharge Upstream of Bridge
A5: Discharge through the Bridge - Weir Formula
A8: Discharge through the Bridge - Orifice Formula
A10: Where
B11: Q = Discharge in cum/sec | G11: =Design_Discharge -> 0
B12: W = Un-Obstructed Width of the Stream in m | G12: =Regime_Width -> 0
B13: L = Linear Waterway of the Bridge in m | G13: =Linear_Waterway -> 0
B14: Dd = Depth of stream in m | G14: =Stream_Depth -> 0
B15: L/W = Ratio for determination of Orifice Formula coefficients | G15: =IFERROR(ROUND(G13/G12,3),0) -> 0
B16: Cw = Coefficient of Standing Wave(as per proposed bridge type) | G16: =IFERROR(VLOOKUP(Proposed_Bridge_Type,Weir_Coefficients,2,FALSE),0) -> 0
B17: C0 = f(L/W) = | G17: =IFERROR(ROUND(Interpolated_Value(Contraction_Proposed_Bridge,Orifice_Coefficients,3),3),0) -> 0
B18: e = f(L/W) = | G18: =IFERROR(ROUND(Interpolated_Value(Contraction_Proposed_Bridge,Orifice_Coefficients,2),3),0) -> 0
B19: h = Afflux of the stream in m (Post-Construction)
A20: Equating Upstream Discharge and Discharge through the Bridge and rearranging the same for Afflux 'h' and solving by iteration
A21: Afflux Calculation by Weir Formula (m)
H24: =U_Weir -> 0
A25: ="= ["&G11&"/(1.706 x " &Weir_CW& " x " &G13& ")]^0.667 - (1/2x9.80)["&G11&"/("&G12&" x ("&G14&" + h)]^2 - " & G14 & " =" -> = [0/(1.706 x 0 x 0)]^0.667 - (1/2x9.80)[0/(0 x (0 + h)]^2 - 0 = | I25: =IFERROR(ROUND(((G11/(1.706*Weir_CW*G13))^(2/3)) - (((G11/(G12*(G14+J25)))^2)/19.6) - G14,2),0) -> 0 | J25: =Afflux_Weir -> 0
A27: Afflux Calculation by Orifice Formula (m)
A31: ="= ("&G11&"^2)/2g) { (1/("&Orifice_C0&" x " &G13& " x " &G14&")^2) - (1 + " & Orifice_e&")/["&G12&"("&G14&" + h)]^2} = " -> = (0^2)/2g) { (1/(0 x 0 x 0)^2) - (1 + 0)/[0(0 + h)]^2} = | I31: =IFERROR(ROUND(((G11^2)/(19.6))*((1/((Orifice_C0*G13*G14)^2))-(1+Orifice_e)/(((G12*(G14+J31))^2))),2),0) -> 0 | J31: =Afflux_Orifice -> 0
A33: ∴ Afflux h= | I33: =IFERROR(IF(Afflux_Weir/G14 > 0.25,Afflux_Weir,Afflux_Orifice),0) -> 0 | J33: m
A34: Note: If h/Dd >0.25, then afflux is given by Weir formula, Else it is given by Orifice Formula

Sheet Database (hidden)
A1: P - Maximum value of Coefficient of Run-off for catchment characteristics 'Run_Off_Coefficient' | D1: Type of Stream | E1: Surface Conditions | J1: Orifice Energy Coefficient
A2: Catchment Characteristics | B2: P | E2: Perfect | F2: Good | G2: Fair | H2: Bad | J2: a/A (L/W) | K2: e | L2: C0
A3: Steep, bare rock and also city pavements | B3: 0.9 | D3: Clean, straight bank, full stage, no rifts or deep pools | E3: 0.025 | F3: 0.0275 | G3: 0.03 | H3: 0.033 | J3: 0.5 | K3: 1.05 | L3: 0.892
A4: Rock, steep but wooded | B4: =B3-0.1 -> 0.8 | D4: Clean, straight bank, full stage, no rifts or deep pools, but with some weeds and stones | E4: 0.03 | F4: 0.033 | G4: 0.035 | H4: 0.04 | J4: =J3+0.05 -> 0.55 | K4: 1.03 | L4: 0.88
A5: Plateaus, lightly covered | B5: =B4-0.1 -> 0.7 | D5: Winding, some pools and shoals, clean | E5: 0.035 | F5: 0.04 | G5: 0.045 | H5: 0.05 | J5: =J4+0.05 -> 0.6 | K5: 1.01 | L5: 0.87
A6: Clayey soils, stiff and bare | B6: 0.6 | D6: Winding, some pools and shoals, clean, lower stages, more ineffective slope and sections | E6: 0.04 | F6: 0.045 | G6: 0.05 | H6: 0.055 | J6: 0.65 | K6: 0.97 | L6: 0.865
A7: Clayey soils, stiff and bare lightly covered | B7: 0.5 | D7: Winding, some pools and shoals, clean, but with some weeds and stones | E7: 0.033 | F7: 0.035 | G7: 0.04 | H7: 0.045 | J7: 0.7 | K7: 0.92 | L7: 0.865
A8: Loam, lightly cultivated or covered | B8: 0.4 | D8: Winding, some pools and shoals, clean, lower stages, more ineffective slope and stoney sections | E8: 0.045 | F8: 0.05 | G8: 0.055 | H8: 0.06 | J8: 0.75 | K8: 0.85 | L8: 0.867
A9: Loam, largely cultivated or covered | B9: 0.3 | D9: Sluggish river reaches, rather weedy or with very deep pools | E9: 0.05 | F9: 0.06 | G9: 0.07 | H9: 0.08 | J9: 0.8 | K9: 0.72 | L9: 0.875
A10: Sandy soil, light growth | B10: 0.2 | D10: Very weedy reaches | E10: 0.075 | F10: 0.1 | G10: 0.125 | H10: 0.15 | J10: 0.85 | K10: 0.5 | L10: 0.9
A11: Sandy soil, light growth covered heavy brush | B11: 0.1 | J11: 0.9 | K11: 0.3 | L11: 0.925
J12: 0.95 | K12: 0.14 | L12: 0.96
J13: 1 | K13: 0 | L13: 1
A14: f - Catchment Area - Mean Intensity factor | D14: Bridge Weir Condition | E14: Coefficient Cw
A15: Area (Ha) | B15: f | D15: Narrow Bridge Opening with or without floors | E15: 0.94
A16: 0 | B16: 1 | D16: Wide Bridge Opening with floors | E16: 0.96
A17: 500 | B17: 0.9833 | D17: Wide Bridge Opening with no bed floors | E17: 0.98
A18: 1000 | B18: 0.9666
A19: 1500 | B19: 0.9
A20: 1665 | B20: 0.885 | D20: Lacey's Mean Dia (dm) and Silt Factor (f) based on type of Bed Material
A21: 2100 | B21: 0.875 | D21: Type of Bed Material | E21: dm | H21: f
A22: 2600 | B22: 0.85 | E22: From | F22: To | G22: Average | H22: From | I22: To | J22: Average
A23: 3300 | B23: 0.84 | D23: Coarse Silt | E23: 0.04 | F23: 0.04 | G23: =AVERAGE(E23,F23) -> 0.04 | H23: 0.35 | I23: 0.35 | J23: =AVERAGE(H23,I23) -> 0.35
A24: 3800 | B24: 0.825 | D24: Silt/Fine Sand | E24: 0.081 | F24: 0.158 | G24: =AVERAGE(E24,F24) -> 0.1195 | H24: 0.5 | I24: 0.6 | J24: =AVERAGE(H24,I24) -> 0.55
A25: 5000 | B25: 0.8 | D25: Medium Sand | E25: 0.233 | F25: 0.505 | G25: 0.369 | H25: 0.8 | I25: 1.25 | J25: 1.025
A26: 5500 | B26: 0.79 | D26: Coarse Sand | E26: 0.725 | F26: 0.725 | G26: 0.725 | H26: 1.5 | I26: 1.5 | J26: 1.5
A27: 6000 | B27: 0.775 | D27: Fine Bajri/Sand | E27: 0.988 | F27: 0.988 | G27: 0.988 | H27: 1.75 | I27: 1.75 | J27: 1.75
A28: 6665 | B28: 0.7665 | D28: Heavy Sand | E28: 1.29 | F28: 2 | G28: 1.645 | H28: 2 | I28: 2.42 | J28: 2.21
A29: 7000 | B29: 0.7585
A30: 7500 | B30: 0.75 | D30: Stream Boundaries
A31: 8335 | B31: 0.739 | D31: Undefined Channel
A32: 8800 | B32: 0.733 | D32: Rigid Boundaries
A33: 9400 | B33: 0.725 | D33: Alluvial (Wide)
A34: 10000 | B34: 0.7222 | D34: Alluvial (Non-Wide)
A35: 11660 | B35: 0.705 | D35: Quasi-Alluvial
A36: 13330 | B36: 0.6888
A37: 15000 | B37: 0.675
A38: 16660 | B38: 0.6666
A39: 18330 | B39: 0.6583
A40: 20000 | B40: 0.65
A41: 21660 | B41: 0.6444
A42: 23330 | B42: 0.6389
A43: 25000 | B43: 0.635
A44: 26660 | B44: 0.6333
A45: 28830 | B45: 0.6277
A46: 30000 | B46: 0.625
A47: 31660 | B47: 0.6222
A48: 33330 | B48: 0.618
A49: 35000 | B49: 0.6166
A50: 36660 | B50: 0.6125
A51: 38330 | B51: 0.61
A52: 40000 | B52: 0.605
A53: 50000 | B53: 0.6
